bitfinex-derivatives/quotes_SOLF0:USTF0_20250829
["timestamp","ask_amount","ask_price","bid_price","bid_amount"]
[1756475669473,152.66,209.26,209.03,4.3047]
[1756475669675,152.66,209.26,208.92,0.83217753]
[1756475669676,18.58419092,209.17,208.92,7.56]
[1756475669876,18.58419092,209.17,208.96,4.3062]
[1756475670073,14.66,209.16,208.92,7.56]
[1756475670483,26.24,209.16,209.0,4.3054]
[1756475670685,26.24,209.16,209.01,7.56]
[1756475671179,18.58419092,209.22,209.01,7.56]
[1756475671379,98.9,209.21,209.01,7.56]
[1756475671570,152.58,209.2,209.01,7.56]
[1756475671974,152.56,209.19,209.01,7.56]
[1756475672173,18.58419092,209.22,209.01,7.56]
[1756475672383,152.58,209.18,209.03,4.3048]
[1756475672579,18.58419092,209.24,209.01,7.56]
[1756475672881,106.78600622,209.26,209.02,7.56]
[1756475673082,106.78600622,209.26,209.05,4.3044]
[1756475673576,152.54,209.25,209.05,4.3044]
[1756475673778,152.54,209.24,209.07,4.304]
[1756475673984,106.78600622,209.26,209.07,4.304]
[1756475674184,152.52,209.23,209.07,4.304]
[1756475674477,152.52,209.23,209.02,7.56]
[1756475674682,18.58419092,209.22,209.02,7.56]
[1756475674980,152.48,209.21,209.02,7.56]
[1756475676079,106.78600622,209.26,209.05,7.56]
[1756475676276,320.74,209.31,209.1,7.56]
[1756475676478,320.74,209.31,209.16,7.56]
[1756475677581,320.74,209.31,209.2,4.3013]
[1756475677778,320.74,209.31,209.16,7.56]
[1756475678377,320.74,209.31,209.19,4.3014]
[1756475678782,320.74,209.31,209.16,11.862]
[1756475679083,320.74,209.31,209.16,7.56]
[1756475679484,320.74,209.31,209.22,4.3009]
[1756475679781,339.78419092,209.46,209.25,7.07]
[1756475679980,321.2,209.46,209.25,7.07]
[1756475680182,473.48,209.46,209.25,7.07]
[1756475680881,473.48,209.46,209.26,62.0]
[1756475681282,492.06419092,209.46,209.25,7.07]
[1756475681478,66.85,209.39,209.25,7.07]
[1756475681684,66.8691,209.33,209.19,7.07]
[1756475682579,66.8627,209.35,209.19,7.07]
[1756475682980,152.22,209.38,209.12,7.07]
[1756475682981,18.58419092,209.36,209.12,7.07]
[1756475683688,32.86419092,209.36,209.12,7.07]
[1756475683983,3.41290055,209.35,209.12,7.07]
[1756475684289,18.58419092,209.31,209.07,7.07]
[1756475684984,25.78,209.3,209.07,7.07]
[1756475685187,18.58419092,209.31,209.12,7.07]
[1756475685188,46.0,209.31,209.12,7.07]
[1756475685588,18.58419092,209.37,209.12,7.07]
[1756475685786,61.86,209.33,209.14,4.3024]
[1756475686380,61.86,209.33,209.13,4.3027]
[1756475686587,61.86,209.33,209.12,7.07]
[1756475687793,18.58419092,209.32,209.12,7.07]
[1756475688291,3.42271819,209.31,209.12,7.07]
[1756475688490,18.58419092,209.32,209.12,7.07]
[1756475688882,25.74,209.31,209.12,7.07]
[1756475689593,25.74,209.31,209.12,11.373]
[1756475689981,45.88,209.34,209.12,7.07]
[1756475690387,4.2993,209.31,209.16,4.3021]
[1756475690583,66.8689,209.33,209.17,7.07]
[1756475692095,3.43900854,209.32,209.17,7.07]
[1756475692394,3.43825358,209.31,209.17,7.07]
[1756475692595,3.43825358,209.3,209.11,18.58419092]
[1756475692790,3.43825358,209.29,209.12,7.07]
[1756475692984,3.43825358,209.28,209.12,7.07]
[1756475693188,3.43825358,209.27,209.12,7.07]
[1756475693390,3.43825358,209.26,209.12,7.07]
[1756475693591,3.43825358,209.25,209.12,7.07]
[1756475693787,3.43825358,209.24,209.05,7.07]
[1756475693987,155.13825358,209.23,208.97,7.07]
[1756475694192,18.58419092,209.19,208.99,5.28768124]
[1756475694592,18.58419092,209.19,208.97,7.07]
[1756475694792,18.58419092,209.19,208.98,4.3058]
[1756475694987,32.86419092,209.19,208.97,7.07]
[1756475695192,18.58419092,209.13,208.97,7.07]
[1756475695392,31.72199118,209.12,208.89,7.07]
[1756475695588,3.30199118,209.11,208.89,7.07]
[1756475695791,3.30199118,209.1,208.93,18.58419092]
[1756475695997,28.42,209.12,208.97,4.3061]
[1756475696894,28.42,209.12,208.99,4.3056]
[1756475697095,28.42,209.12,208.95,62.0]
[1756475697498,3.36752942,209.11,208.95,62.0]
[1756475697697,28.42,209.12,208.94,7.07]
[1756475697901,21.9516869,209.11,208.85,7.07]
[1756475698208,42.66749598,209.1,208.91,7.07]
[1756475698516,3.36931725,209.09,208.91,7.07]
[1756475698697,66.34419092,209.16,208.91,7.07]
[1756475698898,3.3678001,209.15,208.91,7.07]
[1756475699099,3.3678001,209.14,208.91,7.07]
[1756475699299,3.3678001,209.13,208.98,11.3758]
[1756475699602,3.3678001,209.12,208.98,11.3758]
[1756475699803,3.3678001,209.11,208.98,7.07]
[1756475700004,18.58419092,209.16,208.98,7.07]
[1756475700200,3.36934352,209.15,208.98,7.07]
[1756475700503,18.58419092,209.21,208.99,18.58419092]
[1756475700698,3.3175241,209.2,209.08,4.3038]
[1756475700901,151.48,209.27,209.09,7.07]
[1756475701106,3.31898737,209.26,209.09,7.07]
[1756475701304,3.31898737,209.25,209.09,7.07]
[1756475701495,151.48,209.27,209.1,18.58419092]
[1756475701700,151.48,209.27,209.11,7.07]
[1756475702504,18.58419092,209.35,209.13,7.07]
[1756475702702,3.32436302,209.34,209.13,7.07]
[1756475702902,3.32436302,209.33,209.13,7.07]
[1756475703105,3.32436302,209.32,209.15,4.3023]
[1756475703403,3.32436302,209.31,209.15,4.3023]
[1756475703604,107.25278848,209.36,209.19,11.3715]
[1756475703794,3.32713251,209.35,209.19,7.07]
[1756475704102,3.32720928,209.34,209.19,7.07]
[1756475704299,3.32720928,209.33,209.19,7.07]
[1756475704500,3.32720928,209.32,209.19,7.07]
[1756475704693,3.32720928,209.31,209.19,7.07]
[1756475704899,3.32720928,209.3,209.19,7.07]
[1756475705102,3.32720928,209.29,209.11,7.07]
[1756475705404,3.32720928,209.28,209.11,7.07]
[1756475705706,3.32720928,209.27,209.03,7.07]
[1756475705907,3.32720928,209.26,209.03,7.07]
[1756475706204,3.32720928,209.25,209.12,7.07]
[1756475706395,18.58419092,209.35,209.12,7.07]
[1756475706396,43.7,209.32,209.12,7.07]
[1756475706600,3.35616915,209.31,209.12,7.07]
[1756475706799,3.32616915,209.3,209.13,4.3028]
[1756475706994,3.32616915,209.3,209.12,7.07]
[1756475707396,0.03,209.31,209.14,4.3025]
[1756475707599,106.24523331,209.36,209.14,7.83]
[1756475707793,3.32639689,209.35,209.21,4.3011]
[1756475707994,0.03,209.36,209.18,7.83]
[1756475708194,3.32563454,209.35,209.18,7.83]
[1756475708396,0.03,209.36,209.18,7.83]
[1756475708598,3.32476409,209.35,209.18,7.83]
[1756475708797,3.32430641,209.34,209.18,7.83]
[1756475709003,0.03,209.37,209.18,7.83]
[1756475709197,3.32487796,209.36,209.18,7.83]
[1756475709400,0.03,209.37,209.18,7.83]
[1756475709606,3.32523542,209.36,209.18,7.83]
[1756475709903,0.03,209.44,209.25,7.83]
[1756475711106,0.03,209.44,209.31,12.129]
[1756475711308,0.03,209.44,209.31,7.83]
[1756475712001,0.03,209.51,209.31,7.83]
[1756475712204,3.3220567,209.5,209.31,7.83]
[1756475712409,0.03,209.51,209.31,7.83]
[1756475712710,0.03,209.58,209.35,7.83]
[1756475712905,0.03,209.58,209.34,18.58419092]
[1756475712906,3.32102138,209.57,209.44,7.83]
[1756475713108,0.03,209.58,209.44,7.83]
[1756475713513,18.61419092,209.65,209.44,7.83]
[1756475713912,321.27,209.6,209.44,7.83]
[1756475715205,0.03,209.59,209.37,7.83]
[1756475716110,150.72,209.58,209.37,7.83]
[1756475716512,0.03,209.57,209.37,7.83]
[1756475716713,150.72,209.58,209.37,7.83]
[1756475716915,18.58419092,209.55,209.37,7.83]
[1756475718819,0.83090588,209.57,209.37,7.83]
[1756475719013,150.64,209.55,209.37,7.83]
[1756475719615,150.54,209.56,209.37,7.83]
[1756475719816,150.54,209.56,209.37,69.83]
[1756475720721,150.54,209.56,209.37,7.83]
[1756475721929,18.58419092,209.55,209.37,7.83]
[1756475722624,340.65501745,209.6,209.37,7.83]
[1756475722825,339.82419092,209.6,209.37,7.83]
[1756475723028,150.38,209.59,209.37,7.83]
[1756475723229,150.38,209.59,209.42,7.83]
[1756475723523,321.24,209.6,209.42,7.83]
[1756475723731,321.24,209.6,209.43,62.0]
[1756475724129,321.24,209.6,209.44,7.83]
[1756475724326,321.24,209.6,209.44,12.1264]
[1756475724530,321.24,209.6,209.45,7.83]
[1756475725825,18.58419092,209.59,209.35,7.83]
[1756475726033,32.86419092,209.59,209.35,7.83]
[1756475726432,150.2,209.58,209.35,7.83]
[1756475726728,150.2,209.57,209.35,7.83]
[1756475727335,14.28,209.58,209.35,7.83]
[1756475727527,150.14,209.57,209.35,7.83]
[1756475727729,150.14,209.56,209.35,7.83]
[1756475728134,18.58419092,209.59,209.35,7.83]
[1756475728335,150.1,209.58,209.35,7.83]
[1756475728835,150.1,209.58,209.4,4.2972]
[1756475729032,18.58419092,209.59,209.4,7.83]
[1756475729227,150.08,209.58,209.4,7.83]
[1756475729434,18.58419092,209.59,209.4,7.83]
[1756475729632,150.06,209.57,209.4,7.83]
[1756475729832,321.24,209.6,209.44,4.2964]
[1756475730032,471.28,209.6,209.45,7.83]
[1756475730333,471.28,209.6,209.48,4.2954]
[1756475730527,471.28,209.6,209.45,7.83]
[1756475730726,150.0,209.63,209.46,7.83]
[1756475731328,150.0,209.63,209.5,4.2952]
[1756475731838,150.0,209.63,209.46,7.83]
[1756475732039,150.0,209.63,209.49,4.2952]
[1756475732429,339.44419092,209.73,209.47,62.0]
[1756475732635,3.32358182,209.72,209.52,12.1246]
[1756475732833,149.9,209.72,209.52,7.83]
[1756475733030,18.58419092,209.68,209.47,62.0]
[1756475733229,32.86419092,209.68,209.46,7.83]
[1756475733430,14.28,209.66,209.46,7.83]
[1756475733640,18.58419092,209.63,209.46,7.83]
[1756475733833,18.58419092,209.63,209.42,4.2966]
[1756475734234,18.58419092,209.63,209.4,7.83]
[1756475734437,18.58419092,209.68,209.4,7.83]
[1756475734639,143.45941846,209.67,209.45,7.83]
[1756475734835,3.31900239,209.66,209.45,7.83]
[1756475735142,3.31900239,209.65,209.45,7.83]
[1756475735438,168.34419092,209.64,209.45,7.83]
[1756475735739,3.04,209.63,209.45,7.83]
[1756475736331,18.58419092,209.59,209.4,7.83]
[1756475737338,3.04,209.63,209.41,7.28]
[1756475737535,16.56,209.62,209.41,7.28]
[1756475737841,18.58419092,209.64,209.44,4.2964]
[1756475738042,14.22,209.63,209.44,4.2964]
[1756475738237,14.22,209.63,209.41,11.5769]
[1756475738431,14.22,209.63,209.41,7.28]
[1756475739037,14.22,209.63,209.43,4.2966]
[1756475739239,37.14,209.64,209.42,7.28]
[1756475739839,55.72419092,209.64,209.42,7.28]
[1756475740039,70.00419092,209.64,209.42,7.28]
[1756475740441,3.32247471,209.63,209.42,7.28]
[1756475740743,27.68,209.62,209.42,7.28]
[1756475742441,17.60575341,209.61,209.37,7.28]
[1756475742744,18.58419092,209.59,209.37,7.28]
[1756475742940,3.32575341,209.58,209.37,7.28]
[1756475743239,3.3250007,209.57,209.37,7.28]
[1756475743438,3.3250007,209.56,209.37,7.28]
[1756475743637,3.3250007,209.55,209.37,7.28]
[1756475743843,3.3250007,209.54,209.37,7.28]
[1756475744033,3.3250007,209.53,209.37,7.28]
[1756475744238,34.18,209.54,209.37,7.28]
[1756475744545,3.33840878,209.53,209.37,7.28]
[1756475744844,49.86,209.55,209.37,7.28]
[1756475745043,3.33845176,209.54,209.38,4.2975]
[1756475745243,49.86,209.55,209.38,4.2975]
[1756475745440,3.33919834,209.54,209.38,18.58419092]
[1756475745641,55.8,209.62,209.39,7.28]
[1756475745944,3.33954004,209.61,209.39,7.28]
[1756475746141,3.33954004,209.6,209.47,4.2957]
[1756475746342,27.62,209.64,209.47,4.2957]
[1756475746545,3.33897344,209.63,209.45,7.28]
[1756475746741,3.33897344,209.62,209.45,7.28]
[1756475747045,3.33897344,209.61,209.45,7.28]
[1756475747244,3.33897344,209.6,209.45,7.28]
[1756475747543,3.33897344,209.59,209.45,7.28]
[1756475747743,3.34394875,209.58,209.45,7.28]
[1756475747943,37.9,209.63,209.45,7.28]
[1756475748144,3.34372359,209.62,209.45,7.28]
[1756475748343,18.58419092,209.61,209.38,7.28]
[1756475748539,18.58419092,209.61,209.4,4.2971]
[1756475748841,18.58419092,209.56,209.38,7.28]
[1756475749034,32.86419092,209.56,209.34,4.2983]
[1756475749236,18.58419092,209.56,209.32,18.58419092]
[1756475749439,469.92,209.57,209.33,7.28]
[1756475749745,18.58419092,209.56,209.33,7.28]
[1756475750341,3.34850221,209.55,209.33,7.28]
[1756475750543,3.34850221,209.54,209.33,7.28]
[1756475750739,3.34850221,209.53,209.33,7.28]
[1756475750939,3.34850221,209.52,209.33,7.28]
[1756475751138,3.3528206,209.51,209.33,7.28]
[1756475751342,3.3528206,209.5,209.35,7.28]
[1756475751541,3.3528206,209.49,209.35,7.28]
[1756475751743,320.8,209.57,209.41,7.28]
[1756475752045,3.35928929,209.56,209.41,7.28]
[1756475752247,3.35928929,209.55,209.41,7.28]
[1756475752435,3.35928929,209.54,209.41,7.28]
[1756475752640,3.35928929,209.53,209.41,7.28]
[1756475752844,3.35928929,209.52,209.36,7.28]
[1756475753044,3.35928929,209.51,209.31,12.56768124]
[1756475753246,18.58419092,209.52,209.32,4.2988]
[1756475753545,18.58419092,209.52,209.31,7.28]
[1756475753546,32.86419092,209.52,209.31,7.28]
[1756475753946,18.58419092,209.52,209.31,7.28]
[1756475754145,148.04,209.51,209.31,7.28]
[1756475755437,14.28,209.54,209.3,5.28768124]
[1756475755438,145.72,209.54,209.33,12.56768124]
[1756475755842,18.58419092,209.53,209.33,7.28]
[1756475756037,18.58419092,209.48,209.26,12.56768124]
[1756475756238,18.58419092,209.48,209.3,4.2991]
[1756475756445,18.58419092,209.48,209.28,7.28]
[1756475757249,32.86419092,209.48,209.28,7.28]
[1756475757743,18.58419092,209.48,209.28,7.28]
[1756475758648,18.58419092,209.48,209.28,11.5795]
[1756475758849,18.58419092,209.48,209.28,7.28]
[1756475759549,18.58419092,209.48,209.22,89.69368538]
[1756475759550,18.58419092,209.43,209.22,5.28768124]
[1756475759743,32.86419092,209.48,209.21,7.28]
[1756475759744,18.58419092,209.38,209.21,7.28]
[1756475760446,18.58419092,209.38,209.16,7.28]
[1756475760951,18.58419092,209.38,209.08,12.56768124]
[1756475760952,32.86419092,209.33,209.08,12.56768124]
[1756475761138,18.58419092,209.26,209.08,12.56768124]
[1756475761343,18.58419092,209.26,209.03,18.58419092]
[1756475761344,18.58419092,209.21,209.06,5.28768124]
[1756475761544,148.62,209.2,209.03,7.28]
[1756475761745,133.4,209.2,209.03,7.28]
[1756475761948,18.58419092,209.22,209.03,7.28]
[1756475762147,18.58419092,209.22,209.04,7.28]
[1756475762446,18.58419092,209.22,208.99,5.28768124]
[1756475762646,18.58419092,209.17,209.0,7.28]
[1756475763553,18.58419092,209.17,208.93,5.28768124]
[1756475763554,18.58419092,209.17,209.03,7.28]
[1756475764747,57.18419092,209.22,209.04,4.3046]
[1756475764949,18.58419092,209.22,209.05,7.28]
[1756475765147,18.58419092,209.27,209.05,7.28]
[1756475765546,167.08419092,209.27,209.05,7.28]
[1756475765944,167.08419092,209.27,209.11,7.28]
[1756475766153,18.58419092,209.27,209.11,7.28]
[1756475766749,148.48,209.28,209.11,7.28]
[1756475766750,320.9,209.32,209.11,7.28]
[1756475766950,469.36,209.32,209.11,7.28]
[1756475767449,469.36,209.32,209.08,7.62]
[1756475767846,469.36,209.32,209.13,11.9228]
[1756475768256,320.9,209.32,209.08,7.62]
[1756475768447,320.9,209.32,209.18,7.62]
[1756475769253,320.9,209.32,209.08,7.62]
[1756475769643,320.9,209.32,209.07,25.82419092]
[1756475769644,320.9,209.32,209.14,7.62]
[1756475770350,320.9,209.32,209.07,25.82419092]
[1756475770351,18.58419092,209.24,209.04,7.62]
[1756475770653,148.32,209.23,209.04,7.62]
[1756475771345,66.9151,209.19,209.04,7.62]
[1756475771543,4.3023,209.16,209.04,7.62]
[1756475771743,133.8143,209.22,209.04,7.62]
[1756475771948,4.3019,209.18,209.04,11.9246]
[1756475772149,66.9176,209.18,209.04,7.62]
[1756475772347,66.9114,209.2,209.04,7.62]
[1756475772755,4.3021,209.17,209.04,7.62]
[1756475773150,66.9066,209.22,209.04,7.62]
[1756475773354,66.9115,209.2,209.04,7.62]
[1756475773560,66.9081,209.21,209.04,7.62]
[1756475773749,4.3009,209.23,209.09,7.62]
[1756475773955,105.87854758,209.37,209.09,7.62]
[1756475774251,105.87854758,209.37,209.18,18.58419092]
[1756475774454,105.87854758,209.37,209.19,7.62]
[1756475774655,105.87854758,209.37,209.2,4.3014]
[1756475774850,105.87854758,209.37,209.19,7.62]
[1756475775050,79.62,209.4,209.2,4.3014]
[1756475775352,98.20419092,209.4,209.19,7.62]
[1756475775956,14.28,209.39,209.19,7.62]
[1756475776255,98.20419092,209.4,209.04,7.62]
[1756475776256,18.58419092,209.3,209.04,7.62]
[1756475776552,84.5,209.29,209.04,7.62]
[1756475776750,98.78,209.29,209.04,7.62]
[1756475776951,18.58419092,209.25,209.04,7.62]
[1756475777152,98.78,209.29,209.04,7.62]
[1756475777347,18.58419092,209.24,209.04,7.62]
[1756475777548,32.86419092,209.24,209.04,7.62]
[1756475777752,18.58419092,209.24,209.04,7.62]
[1756475779257,18.58419092,209.08,208.88,7.62]
[1756475779459,18.58419092,209.03,208.82,0.83256576]
[1756475779654,13.94,209.02,208.8,7.62]
[1756475779856,18.58419092,208.98,208.8,7.62]
[1756475780360,18.58419092,208.95,208.8,7.62]
[1756475780660,147.92,208.94,208.8,7.62]
[1756475781564,18.58419092,208.9,208.72,7.62]
[1756475782255,18.58419092,208.9,208.72,11.9311]
[1756475782463,18.58419092,208.9,208.72,7.62]
[1756475783167,66.9802,208.99,208.76,67.0517]
[1756475783354,66.9923,208.95,208.77,7.62]
[1756475783660,67.0002,208.93,208.77,7.62]
[1756475783859,4.3071,208.93,208.77,7.62]
[1756475784162,147.86,208.92,208.77,7.62]
[1756475784366,85.56949092,208.97,208.77,7.62]
[1756475784657,147.84,208.96,208.77,78.9783]
[1756475784863,147.82,208.96,208.81,67.0357]
[1756475785060,85.54329092,209.05,208.81,67.0357]
[1756475785362,18.58419092,209.05,208.86,67.0195]
[1756475785554,147.8,209.04,208.85,7.62]
[1756475786457,147.78,209.04,208.9,7.62]
[1756475786658,321.22,209.07,208.9,74.6269]
[1756475786864,147.78,209.06,208.91,4.3073]
[1756475787262,321.22,209.07,208.91,67.0038]
[1756475787462,147.76,209.06,208.9,7.62]
[1756475787667,147.76,209.06,208.91,67.0039]
[1756475787958,321.22,209.07,208.93,4.3068]
[1756475787959,147.74,209.05,208.93,4.3068]
[1756475788859,321.22,209.07,208.93,71.3041]
[1756475789060,321.22,209.07,208.95,71.2969]
[1756475789262,468.92,209.07,208.94,74.6142]
[1756475789465,468.92,209.07,208.94,7.62]
[1756475790059,468.92,209.07,208.87,67.0152]
[1756475790060,321.22,209.07,208.71,1.0]
[1756475790268,18.58419092,209.03,208.83,7.6201]
[1756475790970,18.58419092,209.03,208.83,0.0001]
[1756475791164,147.62,209.02,208.83,0.0001]
[1756475791766,18.58419092,208.98,208.83,0.0001]
[1756475791965,147.6,208.97,208.83,0.0001]
[1756475792165,18.58419092,209.04,208.83,0.0001]
[1756475792370,147.6,209.03,208.83,0.0001]
[1756475792772,147.58,209.02,208.83,0.0001]
[1756475792969,147.56,209.01,208.83,0.0001]
[1756475793173,161.84,209.01,208.83,0.0001]
[1756475793376,32.86419092,208.99,208.83,0.0001]
[1756475795771,147.54,208.98,208.83,0.0001]
[1756475796172,32.86419092,208.99,208.83,0.0001]
[1756475796375,161.76,208.98,208.83,0.0001]
[1756475796670,18.58419092,208.99,208.83,0.0001]
[1756475796872,147.44,208.98,208.83,0.0001]
[1756475797377,18.58419092,208.99,208.83,0.0001]
[1756475797573,14.37,209.02,208.83,0.0001]
[1756475797574,147.42,208.98,208.83,0.0001]
[1756475798074,18.58419092,209.02,208.83,0.0001]
[1756475798270,66.9948,208.94,208.83,0.0001]
[1756475798579,67.0104,208.89,208.83,0.0001]
[1756475798781,66.9948,208.94,208.83,0.0001]
[1756475799077,67.0008,208.92,208.83,0.0001]
[1756475799271,18.58419092,208.92,208.83,0.0001]
[1756475799469,321.66,208.91,208.83,0.0001]
[1756475800280,147.34,208.9,208.83,0.0001]
[1756475800680,147.32,208.89,208.83,0.0001]
[1756475800875,147.3,208.88,208.83,0.0001]
[1756475801081,147.3,208.87,208.83,0.0001]
[1756475801386,321.66,208.91,208.83,0.0001]
[1756475801681,468.94,208.91,208.83,0.0001]
[1756475802382,147.26,208.9,208.83,0.0001]
[1756475803188,4.3086,208.85,208.83,0.0001]
[1756475803379,147.22,208.84,208.83,0.0001]
[1756475803683,147.7,208.84,208.83,0.0001]
[1756475803881,0.48,208.84,208.83,0.0001]
[1756475804188,147.68,208.84,208.83,0.0001]
[1756475804590,18.58419092,208.83,208.71,1.0]
[1756475805189,147.16,208.82,208.71,1.0]
[1756475805484,147.14,208.81,208.71,1.0]
[1756475805685,147.14,208.8,208.71,1.0]
[1756475805875,147.14,208.79,208.71,1.0]
[1756475806076,14.37,208.9,208.71,1.0]
[1756475806282,18.58419092,208.79,208.71,1.0]
[1756475806481,147.12,208.78,208.71,1.0]
[1756475806682,147.1,208.77,208.71,1.0]
[1756475807077,147.12,208.76,208.71,1.0]
[1756475807489,18.58419092,208.85,208.71,1.0]
[1756475807690,147.08,208.84,208.71,1.0]
[1756475807982,18.58419092,208.9,208.71,8.46]
[1756475808181,18.58419092,208.9,208.71,1.0]
[1756475808182,147.06,208.89,208.71,1.0]
[1756475808579,18.58419092,208.9,208.71,1.0]
[1756475808784,147.06,208.88,208.71,1.0]
[1756475808985,147.04,208.87,208.71,1.0]
[1756475809184,1579.9164,208.99,208.71,1.0]
[1756475809185,5.19872321,209.07,208.72,7.46]
[1756475809390,18.58419092,209.0,208.75,7.46]
[1756475809589,18.58419092,209.0,208.76,18.58419092]
[1756475809885,147.0,208.99,208.78,26.04419092]
[1756475810082,18.58419092,208.95,208.73,4.3108]
[1756475810285,18.58419092,208.9,208.72,7.46]
[1756475810483,12.6,208.89,208.72,7.46]
[1756475810885,67.0104,208.89,208.72,7.46]
[1756475811092,67.0158,208.87,208.72,7.46]
[1756475811387,67.0253,208.84,208.72,7.46]
[1756475811583,67.0253,208.84,208.71,1.0]
[1756475811584,146.96,208.88,208.71,1.0]
[1756475811984,18.58419092,208.89,208.71,1.0]
[1756475812188,104.8,208.88,208.71,1.0]
[1756475812581,18.58419092,208.84,208.71,1.0]
[1756475812780,18.58419092,208.79,208.71,1.0]
[1756475812988,146.9,208.78,208.71,1.0]
[1756475813190,146.9,208.77,208.71,1.0]
[1756475813888,146.88,208.76,208.71,1.0]
[1756475814091,18.58419092,208.74,208.55,7.46]
[1756475814292,32.95419092,208.74,208.55,7.46]
[1756475814590,18.58419092,208.69,208.48,7.46]
[1756475814784,146.56,208.68,208.48,7.46]
[1756475815188,146.84,208.67,208.48,7.46]
[1756475816584,18.58419092,208.64,208.43,7.46]
[1756475817486,321.86,208.69,208.43,7.46]
[1756475817693,18.58419092,208.66,208.43,7.46]
[1756475818096,18.58419092,208.61,208.43,7.46]
[1756475818394,146.78,208.6,208.43,7.46]
[1756475818587,146.78,208.59,208.43,7.46]
[1756475818982,4.3142,208.58,208.43,7.46]
[1756475819190,67.1112,208.58,208.43,7.46]
[1756475819387,18.58419092,208.57,208.36,7.46]
[1756475819789,13.7,208.56,208.37,7.46]
[1756475820190,107.45577082,208.67,208.42,7.46]
[1756475820391,18.58419092,208.63,208.42,7.46]
[1756475820592,18.58419092,208.58,208.42,7.46]
[1756475820791,132.72,208.57,208.42,7.46]
[1756475820998,132.72,208.56,208.42,7.46]
[1756475821491,135.8,208.55,208.42,7.46]
[1756475821994,138.74,208.59,208.42,7.46]
[1756475822197,18.58419092,208.66,208.43,7.46]
[1756475822397,146.68,208.65,208.43,7.46]
[1756475822596,18.58419092,208.61,208.43,7.46]
[1756475822900,18.58419092,208.66,208.38,18.58419092]
[1756475823100,146.66,208.65,208.39,7.46]
[1756475823298,18.58419092,208.61,208.39,7.46]
[1756475823499,18.58419092,208.64,208.39,7.46]
[1756475823896,135.66,208.63,208.39,7.46]
[1756475824093,107.45577082,208.67,208.43,18.58419092]
[1756475824400,146.62,208.66,208.49,7.46]
[1756475824791,107.45577082,208.67,208.51,18.58419092]
[1756475824996,321.86,208.69,208.52,7.46]
[1756475825693,321.86,208.69,208.53,69.46]
[1756475826407,146.58,208.71,208.54,7.46]
[1756475826596,322.14,208.82,208.62,7.19]
[1756475826897,146.56,208.87,208.67,7.19]
[1756475827102,146.56,208.86,208.67,7.19]
[1756475827397,67.0482,208.77,208.67,7.19]
[1756475827596,67.0609,208.73,208.61,25.77419092]
[1756475827793,67.0515,208.76,208.61,25.77419092]
[1756475827992,67.0515,208.76,208.61,7.19]
[1756475827993,4.3121,208.68,208.61,7.19]
[1756475828598,4.3116,208.71,208.61,7.67]
[1756475828794,67.0771,208.68,208.61,7.19]